Cogmind - Beta 13 @@@ ROGUE MODE // 2024.06.08 @ 21:33:01 Player: Johge Result: Destroyed by G-47 Trooper with Particle Gun Performance ------------- Evolutions (2) 1000 Regions Visited (5) 1000 Robots Destroyed (27) 135 Value Destroyed (673) 673 Prototype IDs (0) 0 Alien Tech Used (0) 0 Bonus (0) 0 TOTAL SCORE: 2808 Bonus ------- None Cogmind --------- Core Integrity 0/550 Matter 272/300 Energy 98/100 System Corruption 0% Temperature Cool (71) Movement Treading (240) Ox1 Location -8/Materials Parts ------- > --- POWER (2) -------- (None) > --- PROPULSION (4) --- Light Treads > --- UTILITY (3) ------ Large Storage Unit Targeting Computer Utility Shielding > --- WEAPON (2) ------- (None) > --- INVENTORY (15) --- High-capacity Storage Unit High-capacity Matter Pod (200) Improved Signal Interpreter Improved Terrain Scanner Hacking Suite Medium Laser Peak State ------------ > --- POWER ------------ Light Ion Engine Light Nuclear Core > --- PROPULSION ------- Light Treads Light Treads Aluminum Leg > --- UTILITY ---------- Large Storage Unit Targeting Computer Utility Shielding > --- WEAPON ----------- Field Laser Light Assault Rifle > --- INVENTORY -------- High-capacity Storage Unit High-capacity Matter Pod Improved Signal Interpreter Improved Terrain Scanner Hacking Suite Medium Laser Light Assault Rifle [Rating: 15] Favorites ----------- Power Ion Engine Engine Ion Engine Power Core Light Nuclear Core Propulsion Light Treads Treads Light Treads Leg Aluminum Leg Utility Utility Shielding Device Improved Heat Sink Storage Large Storage Unit Processor Targeting Computer Protection Utility Shielding Weapon Light Assault Rifle Energy Gun Medium Laser Ballistic Gun Light Assault Rifle Build | -11 -10 -10 -10 -9 -8 ------- Run | Yrd Mat Min Exi Min Mat Slots Evolved 4 | . . . . . 4 Power 1 | . . . . . 1 Propulsion 2 | . . . . . 2 Utility 1 | . . . . . 1 Weapon . | . . . . . . Parts Attached 26 | 6 6 . . 2 12 Power 4 | 1 . . . . 3 Engine 3 | 1 . . . . 2 Core 1 | . . . . . 1 Reactor . | . . . . . . Propulsion 9 | 2 3 . . . 4 Treads 7 | 2 2 . . . 3 Leg 2 | . 1 . . . 1 Wheel . | . . . . . . Hover . | . . . . . . Flight . | . . . . . . Utility 5 | 1 2 . . . 2 Device 1 | . . . . . 1 Storage 2 | 1 1 . . . . Processor 1 | . . . . . 1 Hackware . | . . . . . . Protection 1 | . 1 . . . . Artifact . | . . . . . . Weapon 8 | 2 1 . . 2 3 Energy Gun 2 | 1 . . . . 1 Energy Cannon . | . . . . . . Ballistic Gun 6 | 1 1 . . 2 2 Ballistic Cannon . | . . . . . . Launcher . | . . . . . . Special Weapon . | . . . . . . Impact Weapon . | . . . . . . Slashing Weapon . | . . . . . . Piercing Weapon . | . . . . . . Special Melee Weapon . | . . . . . . Unidentified Prototypes . | . . . . . . Parts Lost 16 | . 1 . . . 15 Power 4 | . . . . . 4 Propulsion 6 | . 1 . . . 5 Utility 1 | . . . . . 1 Weapon 5 | . . . . . 5 Highest Loss Streak 9 | . 1 . . . 9 To Critical Strikes . | . . . . . . Average Slot Usage (%) 94 | . 95 100 100 100 72 Engine 12 | . 14 14 14 14 5 Core 1 | . . . . . 6 Treads 23 | . 18 28 28 28 10 Leg 2 | . 7 . . . 5 Storage 13 | . 14 14 14 14 9 Protection 12 | . 12 14 14 14 9 Energy Gun 1 | . 4 . . . 2 Ballistic Gun 24 | . 23 28 28 28 14 Naked Turns . | . . . . . . Heaviest Build 33 | 13 28 28 28 28 33 Greatest Support 40 | 40 40 40 40 40 40 Greatest Overweight (x) 7 | . 1 . . . 7 Average Overweight (x) . | . . . . . . Largest Inventory Capacity 15 | 8 15 15 15 15 15 Average Capacity 13 | 6 8 15 15 15 15 Most Carried 9 | 4 8 7 8 9 9 Average Carried 6 | 1 5 7 7 7 7 Final Capacity 15 | 8 15 15 15 15 15 Final Carried 8 | 2 7 7 7 8 6 Class Distribution -------------------- 83% | Mutant 16% | Scavenger-Mutant Dominant Class ---------------- Mutant | -10/Materials Mutant | -10/Mines Mutant | -10/Exiles Mutant | -9/Mines Scavenger-Mutant | -8/Materials Resources | -11 -10 -10 -10 -9 -8 ----------- Run | Yrd Mat Min Exi Min Mat Matter Collected 702 | 202 240 . 76 30 154 Remotely . | . . . . . . Salvage Created 1066 | . 411 . . 58 597 Parts 55 | . 19 . . 8 28 Haulers Intercepted 2 | . 1 . . . 1 Recyclers Shooed 3 | . . . . . 3 Parts Field Recycled . | . . . . . . Retrieved Matter . | . . . . . . Parts Self-Destructed . | . . . . . . Prevented . | . . . . . . Kills | -11 -10 -10 -10 -9 -8 ------- Run | Yrd Mat Min Exi Min Mat Combat Hostiles Destroyed 18 | . 6 . . 4 8 Guns 18 | . 6 . . 4 8 Classes Destroyed 9 | . 5 . . 1 3 Builder 1 | . 1 . . . . Tunneler 1 | . 1 . . . . Hauler 2 | . 1 . . . 1 Recycler 2 | . . . . . 2 Operator 1 | . 1 . . . . Watcher 2 | . . . . . 2 Swarmer 6 | . . . . 4 2 Grunt 9 | . 6 . . . 3 Sentry 3 | . . . . . 3 Best Kill Streak 4 | . 4 . . 4 3 Combat Bots Only 4 | . 2 . . 4 2 Max Kills in Single Turn 2 | . 1 . . 2 1 Gunslinging . | . . . . . . Exploded . | . . . . . . Melee . | . . . . . . Uniques/NPCs Destroyed . | . . . . . . Combat | -11 -10 -10 -10 -9 -8 -------- Run | Yrd Mat Min Exi Min Mat Hostile Shots Fired 228 | . 57 . . 9 162 Missed 50 | . 12 . . 5 33 Damage Taken 2420 | . 571 . . 30 1819 Core 709 | . 149 . . 6 554 Absorbed by Shields . | . . . . . . Redirected to Shielding 45 | . 4 . . . 41 Core Remaining (%) 69 | 100 . . . 38 . Volleys Fired 112 | . 43 . . 5 64 Largest 2 | . 2 . . 2 2 Hottest 83 | . 70 . . 40 83 Shots Fired 221 | . 86 . . 10 125 Gun 221 | . 86 . . 10 125 Cannon . | . . . . . . Launcher . | . . . . . . Special . | . . . . . . Kinetic 190 | . 73 . . 10 107 Thermal 31 | . 13 . . . 18 Explosive . | . . . . . . Electromagnetic . | . . . . . . Robot Hit Streak 14 | . 14 . . 4 11 Robot Miss Streak 3 | . 3 . . 3 3 Penetration Max . | . . . . . . Secondary Targets 3 | . 1 . . 1 1 Max Gunslinging Chain 1 | . 1 . . 1 1 Shots Hit Robots 144 | . 54 . . 5 85 Core Hits 67 | . 23 . . 4 40 Critical Kills . | . . . . . . Critical Parts Destroyed 2 | . 1 . . . 1 Critical Strikes 4 | . 2 . . . 2 Burn 2 | . 1 . . . 1 Destroy 2 | . 1 . . . 1 Melee Attacks . | . . . . . . Impact . | . . . . . . Slashing . | . . . . . . Piercing . | . . . . . . Sneak Attacks . | . . . . . . Combat Hostiles . | . . . . . . Follow-up Attacks . | . . . . . . Damage Inflicted 1415 | . 496 . . 47 872 Guns 1412 | . 493 . . 47 872 Cannons . | . . . . . . Explosions . | . . . . . . Melee . | . . . . . . Ramming 3 | . 3 . . . . Kinetic 1092 | . 379 . . 47 666 Thermal 320 | . 114 . . . 206 Explosive . | . . . . . . Electromagnetic . | . . . . . . Impact . | . . . . . . Slashing . | . . . . . . Piercing . | . . . . . . Highest Corruption . | . . . . . . Average Corruption . | . . . . . . Corruption Purged . | . . . . . . Corruption Blocked . | . . . . . . Overload Shots . | . . . . . . Overflow Damage . | . . . . . . Projectiles . | . . . . . . Explosions . | . . . . . . Melee . | . . . . . . Knockbacks . | . . . . . . Impact . | . . . . . . Kinetic . | . . . . . . Secondary . | . . . . . . Self-Inflicted Damage . | . . . . . . Shots . | . . . . . . Rammed . | . . . . . . Targets Rammed 2 | . 2 . . . . Kicked 2 | . 2 . . . . Crushed . | . . . . . . Highest Temperature 412 | . 359 . . . 412 Average Temperature 140 | . 126 . . . 155 Received Heat Transfer 1146 | . 336 . . . 810 Siege Activations . | . . . . . . Robots Corrupted . | . . . . . . Combat Hostiles . | . . . . . . Parts Fried . | . . . . . . Impact Corruptions . | . . . . . . Robots Melted . | . . . . . . Combat Hostiles . | . . . . . . Parts Melted 3 | . 3 . . . . Heat Transferred 925 | . 407 . . . 518 Parts Sabotaged . | . . . . . . Parts Stolen . | . . . . . . Parts Stripped . | . . . . . . Power Chain Reactions . | . . . . . . Alert | -11 -10 -10 -10 -9 -8 ------- Run | Yrd Mat Min Exi Min Mat Peak Influence 241 | . 182 70 . 90 241 Initial 70 | . . 70 . . 35 Average 96 | . 92 70 . 86 127 Maximum Alert Level 1 | . . . . . 1 Low Security (%) 89 | 100 100 100 . 100 72 Level 1 10 | . . . . . 27 Level 2 . | . . . . . . Level 3 . | . . . . . . Level 4 . | . . . . . . Level 5 . | . . . . . . High Security . | . . . . . . Max Security . | . . . . . . Squads Dispatched 5 | . 2 . . . 3 Investigation . | . . . . . . Extermination . | . . . . . . Reinforcement 2 | . 2 . . . . Assault . | . . . . . . Garrison 3 | . . . . . 3 Intercept . | . . . . . . Searches Triggered . | . . . . . . Construction Impeded . | . . . . . . Haulers Reinforced . | . . . . . . Active Scanning Responses . | . . . . . . Cargo Convoy Interrupts . | . . . . . . Stealth | -11 -10 -10 -10 -9 -8 --------- Run | Yrd Mat Min Exi Min Mat Distress Signals 2 | . . . . . 2 Communications Jammed . | . . . . . . Distress Signals . | . . . . . . Times Spotted 36 | . 13 . . 2 21 Peak Tracking Total 7 | . 3 . . 2 7 Tactical Retreats . | . . . . . . Traps | -11 -10 -10 -10 -9 -8 ------- Run | Yrd Mat Min Exi Min Mat Traps Triggered . | . . . . . . Indirectly . | . . . . . . Trap Hack Attempts . | . . . . . . Triggered . | . . . . . . Disarmed . | . . . . . . Reprogrammed . | . . . . . . Reused . | . . . . . . Traps Extracted . | . . . . . . Installed . | . . . . . . Triggered . | . . . . . . Machines | -11 -10 -10 -10 -9 -8 ---------- Run | Yrd Mat Min Exi Min Mat Machines Disabled 1 | . . . . . 1 Max in Single Turn 1 | . . . . . 1 Machines Repaired . | . . . . . . Machines Dismantled . | . . . . . . Machines Sabotaged . | . . . . . . Overloaded Fab Kills . | . . . . . . Hacking | -11 -10 -10 -10 -9 -8 --------- Run | Yrd Mat Min Exi Min Mat Machines Accessed 5 | . . . 4 . 1 Terminals 1 | . . . . . 1 Fabricators . | . . . . . . Repair Stations . | . . . . . . Recycling Units . | . . . . . . Scanalyzers . | . . . . . . Garrison Access . | . . . . . . Total Hacks 54 | . . . 49 . 5 Successful 52 | . . . 49 . 3 Failed 2 | . . . . . 2 Catastrophic . | . . . . . . Database Lockouts . | . . . . . . Manual . | . . . . . . Terminals 5 | . . . . . 5 Fabricators . | . . . . . . Repair Stations . | . . . . . . Recycling Units . | . . . . . . Scanalyzers . | . . . . . . Garrison Access . | . . . . . . Terminal Hacks 52 | . . . 49 . 3 Record 50 | . . . 49 . 1 Alert Level 1 | . . . . . 1 Zone Layout 1 | . . . . . 1 Fabricator Hacks . | . . . . . . Repair Station Hacks . | . . . . . . Recycling Unit Hacks . | . . . . . . Scanalyzer . | . . . . . . Garrison Access Hacks . | . . . . . . Unauthorized Hacks . | . . . . . . Terminals . | . . . . . . Fabricators . | . . . . . . Repair Stations . | . . . . . . Recycling Units . | . . . . . . Scanalyzers . | . . . . . . Garrison Access . | . . . . . . Data Cores Recovered . | . . . . . . Used . | . . . . . . Hacking Detections . | . . . . . . Full Trace Events . | . . . . . . Feedback Events . | . . . . . . Feedback Blocked . | . . . . . . Robot Schematics Acquired . | . . . . . . Robots Built . | . . . . . . Authchips . | . . . . . . Time . | . . . . . . Total Robot Build Rating . | . . . . . . Part Schematics Acquired . | . . . . . . Parts Built . | . . . . . . Authchips . | . . . . . . Time . | . . . . . . Total Part Build Rating . | . . . . . . Parts Repaired . | . . . . . . Time . | . . . . . . Parts Recycled . | . . . . . . Recycled Matter . | . . . . . . Retrieved Matter . | . . . . . . Retrieved Components . | . . . . . . Parts Scanalyzed . | . . . . . . Part Schematics Acquired . | . . . . . . Parts Damaged . | . . . . . . Bothacking | -11 -10 -10 -10 -9 -8 ------------ Run | Yrd Mat Min Exi Min Mat Used RIF Installer . | . . . . . . Robots Hacked . | . . . . . . Non-combat . | . . . . . . Combat . | . . . . . . Robot Hacks Applied . | . . . . . . Relay Couplers Released . | . . . . . . Fabnet Peak Effective % . | . . . . . . Robots Rewired . | . . . . . . Allies Hacked . | . . . . . . Hacks Repelled . | . . . . . . Allies | -11 -10 -10 -10 -9 -8 -------- Run | Yrd Mat Min Exi Min Mat Total Allies . | . . . . . . Largest Group . | . . . . . . Highest-Rated Group . | . . . . . . Highest-Rated Ally . | . . . . . . Total Orders . | . . . . . . Ally Attacks . | . . . . . . Total Damage . | . . . . . . Kills . | . . . . . . Allies Corrupted . | . . . . . . Allies Melted . | . . . . . . Intel | -11 -10 -10 -10 -9 -8 ------- Run | Yrd Mat Min Exi Min Mat Robot Analysis Total . | . . . . . . Derelict Logs Recovered . | . . . . . . Drone Launches . | . . . . . . Drone Recoveries . | . . . . . . Exploration | -11 -10 -10 -10 -9 -8 ------------- Run | Yrd Mat Min Exi Min Mat Turns Passed 2285 | 59 376 156 1138 145 411 Spaces Moved 1158 | 39 129 98 711 80 101 Core 17 | 15 . . . . 2 Treads 1080 | 24 72 98 711 80 95 Legs 61 | . 57 . . . 4 Wheels . | . . . . . . Hover . | . . . . . . Flight . | . . . . . . Fastest Speed 50 | 50 160 160 160 160 160 Average Speed 164 | 117 173 160 160 160 207 Slowest Speed 400 | 160 190 160 160 160 400 Overloaded Moves . | . . . . . . Propulsion Burnouts . | . . . . . . Robots Hopped . | . . . . . . Cave-ins Triggered . | . . . . . . Exploration Rate (%) 33 | 4 26 38 92 25 16 Regions Visited 5 Branch Regions 3 Pre-discovered Areas 1 | . . . 1 . . Known Exits Taken . | . . . . . . Unknown Exits Taken 5 | 1 1 1 1 1 . Scrap Searched . | . . . . . . Spaces Dug . | . . . . . . Terrain Destroyed . | . . . . . . Melee . | . . . . . . Projectile . | . . . . . . AOE . | . . . . . . Terrain Rammed . | . . . . . . Walls Destroyed . | . . . . . . Machines Disabled . | . . . . . . Actions | -11 -10 -10 -10 -9 -8 --------- Run | Yrd Mat Min Exi Min Mat Total 1355 | 52 207 97 712 89 198 Wait 28 | . 17 . . . 11 Move 1153 | 38 128 97 710 79 101 Hop . | . . . . . . Pick Up 30 | 8 9 . 1 2 10 Fast Attach . | . . . . . . Attach 20 | 6 2 . . . 12 Detach . | . . . . . . Swap 6 | . 4 . . 2 . Drop 4 | . 2 . 1 1 . Fire 112 | . 43 . . 5 64 Melee . | . . . . . . Ram . | . . . . . . Kick 2 | . 2 . . . . Crush . | . . . . . . Escape Stasis . | . . . . . . Rewire . | . . . . . . Trap . | . . . . . . Miscellaneous . | . . . . . . Route ------- -11/Scrapyard -10/Materials (discovered 2 exits: [*Min x2]) -10/Mines -10/Exiles (discovered 2 exits: [*Min x2]) -9/Mines -8/Materials History --------- Turn | Location | Event 6 | -11/Scrapyard | Discovered new exit (range 15) 60 | -11/Scrapyard | Entered Materials 202 | -10/Materials | Discovered new exit (range 16) 215 | -10/Materials | Discovered new exit (range 9) 264 | -10/Materials | Core integrity fell below 50% 313 | -10/Materials | Build established: Mutant 436 | -10/Materials | Entered Mines 584 | -10/Mines | Deemed a non-threat by the Exiles lab entrance 585 | -10/Mines | Discovered new exit (range 5) 592 | -10/Mines | Entered Exiles 613 | -10/Exiles | Discovered new exit (range 15) 664 | -10/Exiles | Met 8R-AWN 698 | -10/Exiles | Met EX-HEX 756 | -10/Exiles | Met EX-BIN 935 | -10/Exiles | Met EX-DEC 1059 | -10/Exiles | Visited The Gauntlet 1317 | -10/Exiles | Discovered new exit (range 10) 1424 | -10/Exiles | Learned location of Zion (-7) 1730 | -10/Exiles | Entered Mines 1795 | -9/Mines | Discovered new exit (range 6) 1875 | -9/Mines | Entered Materials 1875 | -8/Materials | Evolved 4 slots: Power x1, Propulsion x2, Utility x1 1910 | -8/Materials | Garrison activated, responded to threat 2037 | -8/Materials | Lost 3 parts (1p1n1u) 2190 | -8/Materials | Build established: Scavenger-Mutant 2262 | -8/Materials | Core integrity fell below 50% 2276 | -8/Materials | Core integrity fell below 20% 2286 | -8/Materials | Destroyed by G-47 Trooper with Particle Gun Last Messages --------------- Y-45 Defender suffers critical hit (Destroy). Destroyed Beam Rifle. K-01 Serf collects debris. Lgt. Assault Rifle destroyed. Aluminum Leg destroyed. K-01 Serf collects debris. Y-45 Defender destroyed. Field Laser destroyed. K-01 Serf collects debris. Critical hit (Burn: +37). K-01 Serf collects debris. Acquired Hvy. Assault Rifle. K-01 Serf collects debris. Hvy. Assault Rifle destroyed. Y-45 Defender destroyed. K-01 Serf collects debris. Lgt. Assault Rifle destroyed. K-01 Serf collects debris. Acquired Lgt. Treads. K-01 Serf collects debris. Map ----- +----------------------------------------------------+ | ????????????????????????????????????# | | ????????????????????????????????????# | | ????????????????????????????????????########### | | ??????????????????????????????????????????????## | | ?????????????????????????????????????########### | | ?????????????????????????????????????# # | | ?????????????????????????????????????# + | | ?????????????????######### ## """ # # | | ?????????????????????????# ## """ # # % | | ?????????????????????????# ## ########### | | ??????????????????######## #######+########## % | | ??????????????????# | | ??????????????????# | | ??????????????????# | | ??????????????????# #####+################### | | ??????????????????# ## ################ # | | ??????????????????# ## # """ !^! % | | ??????????????????# ## # "Y"^ !!! | | ??????????????????# ## + ^!! *!= | | ??????????????????# ## # ^ !%= | | ?????????????###### ########### !! ^ ==! | | ???????????? #????#"" !! """"=%=#### | | ??????????????? #????#"T !! """""![# ?? | | ????????????????? #????#"" """""! # ?? | | ?????????????????##### [######## # ?? | | ????????????????? #??#!%g@ ! r # ?? | | ????????????????? #??# g%s # ?? | | ????????????????? #??# kk ######## # ?? | | ????????????????? #??# #############??????# ##?? | | ????????????????? #??# #############??????# #??? | | ????????????????? #??# # "" #?????## ##?? | | ?????????????????##??# # ""S """ #?????# ?? | | ????????????????? #??# # "" """ #?????# ?? | | ????????????????? #??# # """ #?????# ?? | | ????????????????? #??# + """ #?????#####?? | | ????????????????? #??# # """ #???????????? | | ?????????????????##### # #???????????? | | ????????????????? ## ####### #####???????????? | | ????????????????????? ????????????????????????? | | ????????????????????? ????????????????????????? | | ????????????????????? ????????????????????????? | | ????????????????????? ????????????????????????? | | ????????????????????# ????????????????????????? | | ?????????????????????? ????????????????????????? | | ?????????????????????????????????????????????????? | | ?????????????????????????????????????????????????? | | ?????????????????????????????????????????????????? | | ?????????????????????????????????????????????????? | | ?????????????????????????????????????????????????? | | ?????????????????????????????????????????????????? | +----------------------------------------------------+ Best States ------------- Heat Dissipation 45 Energy Generation 19 Energy Capacity 275 Matter Stores 300 Matter Capacity 300 Sight Range 16 Terrain Scan Density 10 Utility Shielding 33 Evasion (%) 40 Targeting Accuracy 5 Recoil Reduction 2 Item Schematics ----------------- None Robot Schematics ------------------ None Fabricated ------------ Nothing Alien Tech Used ----------------- None Achievements -------------- None Challenges ------------ None Game ------ Seed DispersionTachyonKit Manual? 0 Play Time 00:18:30 Cumulative 22.4 hours Start 2024.06.08 @ 21:15:45 End 2024.06.08 @ 21:33:01 Sessions 1 Manual Loads 0 Difficulty Rogue Special Mode None Game No. 37 Rogue 37 Adventurer 0 Explorer 0 Win Type - Total 0 Types 0/0/0/0/0/0/0/0/0 Lore% 17 Gallery% 23 Achievement% 19 Wizard Run 0 Options --------- Layout 1 ASCII 0 Keyboard 0 Movement Mouse Keybinds 0 Fullscreen 1 Font 24/Smallcaps Map View 50x35 Zoom Use 0% Tactical HUD 0 Map Filters NONE Filters NONE Steam 1 RUN: 26ce20a3-5418-4f42-96a3-ea4171734287